Cogmind - Beta 11.1 @@@ ROGUE MODE // 2022.05.29 @ 23:37:48 Player: Cod_fish Result: Destroyed by as-62703 with Assembled Maul Performance ------------- Evolutions (0) 0 Regions Visited (3) 600 Robots Destroyed (13) 65 Value Destroyed (116) 116 Prototype IDs (23) 460 Alien Tech Used (0) 0 Bonus (267) 267 TOTAL SCORE: 1508 Bonus ------- Aligned with FarCom 300 Friendly Fire -33 Cogmind --------- Core Integrity 0/250 Matter 300/300 Energy 100/100 System Corruption 0% Temperature Cool (0) Movement Core (500) Ox9 Location -10/Exiles Parts ------- > --- POWER (1) -------- (None) > --- PROPULSION (2) --- (None) > --- UTILITY (2) ------ Large Storage Unit > --- WEAPON (2) ------- AWS/Thermal > --- INVENTORY (15) --- Ion Engine Light Treads Light Treads Light Treads Light Treads Light Treads Light Treads Lightpack 2.0 Assault Rifle Assault Rifle Light Cannon Light Cannon Longsword +1 Peak State ------------ > --- POWER ------------ Ion Engine > --- PROPULSION ------- Light Treads Light Treads > --- UTILITY ---------- Large Storage Unit Propulsion Shielding > --- WEAPON ----------- AWS/Thermal > --- INVENTORY -------- Ion Engine Light Treads Light Treads Light Treads Light Treads Light Treads Light Treads Lightpack 2.0 Assault Rifle Assault Rifle Assault Rifle Light Cannon Light Cannon [Rating: 25] Favorites ----------- Power Light Ion Engine Engine Light Ion Engine Propulsion Light Treads Treads Light Treads Utility Large Storage Unit Storage Large Storage Unit Protection Propulsion Shielding Weapon Light Assault Rifle Energy Gun Medium Laser Ballistic Gun Light Assault Rifle Special Melee Weapon Datajack Build | -11 -10 -10 -10 ------- Run | Scr Mat Min Exi Slots Evolved . | . . . . Power . | . . . . Propulsion . | . . . . Utility . | . . . . Weapon . | . . . . Parts Attached 24 | 6 16 1 1 Power 6 | 1 4 1 . Engine 6 | 1 4 1 . Core . | . . . . Reactor . | . . . . Propulsion 3 | 2 1 . . Treads 3 | 2 1 . . Leg . | . . . . Wheel . | . . . . Hover . | . . . . Flight . | . . . . Utility 5 | 1 4 . . Device . | . . . . Storage 3 | 1 2 . . Processor . | . . . . Hackware . | . . . . Protection 2 | . 2 . . Artifact . | . . . . Weapon 10 | 2 7 . 1 Energy Gun 2 | 1 . . 1 Energy Cannon . | . . . . Ballistic Gun 7 | 1 6 . . Ballistic Cannon . | . . . . Launcher . | . . . . Special Weapon . | . . . . Impact Weapon . | . . . . Slashing Weapon . | . . . . Piercing Weapon . | . . . . Special Melee Weapon 1 | . 1 . . Unidentified Prototypes . | . . . . Parts Lost 4 | . . . 4 Power 1 | . . . 1 Propulsion 2 | . . . 2 Utility 1 | . . . 1 Weapon . | . . . . Highest Loss Streak 4 | . . . 4 To Critical Strikes . | . . . . Average Slot Usage (%) 92 | . 93 100 90 Engine 14 | . 14 14 14 Treads 27 | . 28 28 27 Storage 14 | . 14 14 14 Protection 9 | . 7 14 13 Energy Gun 5 | . 5 . 8 Ballistic Gun 19 | . 22 28 12 Naked Turns . | . . . . Heaviest Build 34 | 11 28 30 34 Greatest Support 40 | 40 40 40 40 Greatest Overweight (x) 10 | . . . 10 Average Overweight (x) . | . . . . Largest Inventory Capacity 15 | 8 15 15 15 Average Capacity 13 | 7 13 15 15 Most Carried 15 | 2 15 15 15 Average Carried 12 | 1 11 15 14 Final Capacity 15 | 8 15 15 15 Final Carried 15 | 2 15 15 15 Class Distribution -------------------- 100% | Mutant Dominant Class ---------------- Mutant | -10/Materials Mutant | -10/Mines Mutant | -10/Exiles Resources | -11 -10 -10 -10 ----------- Run | Scr Mat Min Exi Matter Collected 512 | 256 240 16 . Remotely . | . . . . Salvage Created 329 | . 329 . . Parts 16 | . 16 . . Haulers Intercepted 2 | . 2 . . Recyclers Shooed . | . . . . Parts Field Recycled . | . . . . Retrieved Matter . | . . . . Parts Self-Destructed . | . . . . Prevented . | . . . . Kills | -11 -10 -10 -10 ------- Run | Scr Mat Min Exi Combat Hostiles Destroyed 9 | . 9 . . Guns 9 | . 9 . . Classes Destroyed 4 | . 4 . . Hauler 2 | . 2 . . Recycler 1 | . 1 . . Watcher 1 | . 1 . . Swarmer 9 | . 9 . . Best Kill Streak 3 | . 3 . . Combat Bots Only 3 | . 3 . . Max Kills in Single Turn 1 | . 1 . . Gunslinging . | . . . . Exploded . | . . . . Melee . | . . . . Uniques/NPCs Destroyed . | . . . . Combat | -11 -10 -10 -10 -------- Run | Scr Mat Min Exi Damage Taken 1011 | . 398 39 574 Core 273 | . 85 . 188 Absorbed by Shields . | . . . . Redirected to Shielding 54 | . 9 5 40 Core Remaining (%) 100 | 100 . . . Volleys Fired 51 | . 50 1 . Largest 2 | . 2 2 . Hottest 70 | . 70 40 . Shots Fired 102 | . 100 2 . Gun 102 | . 100 2 . Cannon . | . . . . Launcher . | . . . . Special . | . . . . Kinetic 78 | . 76 2 . Thermal 24 | . 24 . . Explosive . | . . . . Electromagnetic . | . . . . Robot Hit Streak 6 | . 6 3 . Robot Miss Streak 5 | . 5 1 . Penetration Max . | . . . . Secondary Targets 1 | . 1 . . Max Gunslinging Chain 1 | . 1 . . Shots Hit Robots 57 | . 56 1 . Core Hits 24 | . 21 2 1 Critical Kills . | . . . . Critical Parts Destroyed . | . . . . Critical Strikes 2 | . 2 . . Burn 2 | . 2 . . Melee Attacks . | . . . . Impact . | . . . . Slashing . | . . . . Piercing . | . . . . Sneak Attacks . | . . . . Combat Hostiles . | . . . . Follow-up Attacks . | . . . . Damage Inflicted 555 | . 515 27 13 Guns 542 | . 515 27 . Cannons . | . . . . Explosions . | . . . . Melee . | . . . . Ramming 13 | . . . 13 Kinetic 367 | . 340 27 . Thermal 175 | . 175 . . Explosive . | . . . . Electromagnetic . | . . . . Impact . | . . . . Slashing . | . . . . Piercing . | . . . . Highest Corruption . | . . . . Average Corruption . | . . . . Corruption Purged . | . . . . Corruption Blocked . | . . . . Overload Shots . | . . . . Overflow Damage . | . . . . Projectiles . | . . . . Explosions . | . . . . Melee . | . . . . Knockbacks . | . . . . Impact . | . . . . Kinetic . | . . . . Secondary . | . . . . Self-Inflicted Damage 1 | . . . 1 Shots . | . . . . Rammed 2 | . . . 2 Targets Rammed 2 | . . . 2 Kicked . | . . . . Crushed . | . . . . Highest Temperature 200 | . 200 8 . Average Temperature 72 | . 74 7 . Received Heat Transfer 81 | . . 21 60 Siege Activations . | . . . . Robots Corrupted . | . . . . Combat Hostiles . | . . . . Parts Fried . | . . . . Impact Corruptions . | . . . . Robots Melted . | . . . . Combat Hostiles . | . . . . Parts Melted 1 | . 1 . . Heat Transferred 666 | . 666 . . Parts Sabotaged . | . . . . Parts Stolen . | . . . . Parts Stripped . | . . . . Power Chain Reactions . | . . . . Missiles Intercepted . | . . . . Alert | -11 -10 -10 -10 ------- Run | Scr Mat Min Exi Peak Influence 130 | . 130 17 . Initial 17 | . . 17 . Average 42 | . 46 17 . Maximum Alert Level . | . . . . Low Security (%) 100 | 100 100 100 . Level 1 . | . . . . Level 2 . | . . . . Level 3 . | . . . . Level 4 . | . . . . Level 5 . | . . . . High Security . | . . . . Max Security . | . . . . Squads Dispatched . | . . . . Investigation . | . . . . Extermination . | . . . . Reinforcement . | . . . . Assault . | . . . . Garrison . | . . . . Intercept . | . . . . Searches Triggered . | . . . . Construction Impeded . | . . . . Haulers Reinforced . | . . . . Active Scanning Responses . | . . . . Cargo Convoy Interrupts . | . . . . Stealth | -11 -10 -10 -10 --------- Run | Scr Mat Min Exi Distress Signals 1 | . 1 . . Communications Jammed . | . . . . Distress Signals . | . . . . Times Spotted 26 | . 15 3 8 Peak Tracking Total 9 | . 4 . 9 Tactical Retreats 2 | . 2 . . Traps | -11 -10 -10 -10 ------- Run | Scr Mat Min Exi Traps Triggered 1 | . 1 . . Indirectly . | . . . . Trap Hack Attempts 10 | . 10 . . Triggered . | . . . . Disarmed . | . . . . Reprogrammed 2 | . 2 . . Reused . | . . . . Traps Extracted . | . . . . Installed . | . . . . Triggered . | . . . . Machines | -11 -10 -10 -10 ---------- Run | Scr Mat Min Exi Machines Disabled . | . . . . Max in Single Turn . | . . . . Machines Sabotaged . | . . . . Garrisons Compromised . | . . . . Overloaded Fab Kills . | . . . . Hacking | -11 -10 -10 -10 --------- Run | Scr Mat Min Exi Machines Accessed 7 | . 5 . 2 Terminals 5 | . 5 . . Fabricators . | . . . . Repair Stations . | . . . . Recycling Units . | . . . . Scanalyzers . | . . . . Garrison Access . | . . . . Total Hacks 19 | . 17 . 2 Successful 11 | . 9 . 2 Failed 8 | . 8 . . Catastrophic 1 | . 1 . . Database Lockouts . | . . . . Manual 14 | . 13 . 1 Terminals 17 | . 17 . . Fabricators . | . . . . Repair Stations . | . . . . Recycling Units . | . . . . Scanalyzers . | . . . . Garrison Access . | . . . . Terminal Hacks 7 | . 5 . 2 Record 1 | . . . 1 Robot Analysis 2 | . 2 . . Terminal Index 1 | . 1 . . Locate Traps 1 | . 1 . . Hauler Manifests 1 | . 1 . . EX-Prototype ID Bank 1 | . . . 1 Fabricator Hacks . | . . . . Repair Station Hacks . | . . . . Recycling Unit Hacks . | . . . . Scanalyzer . | . . . . Garrison Access Hacks . | . . . . Unauthorized Hacks 4 | . 4 . . Terminals 4 | . 4 . . Botnet 3 | . 3 . . Operators 1 | . 1 . . Fabricators . | . . . . Repair Stations . | . . . . Recycling Units . | . . . . Scanalyzers . | . . . . Garrison Access . | . . . . Data Cores Recovered . | . . . . Used . | . . . . Hacking Detections 5 | . 5 . . Full Trace Events . | . . . . Feedback Events . | . . . . Feedback Blocked . | . . . . Robot Schematics Acquired . | . . . . Robots Built . | . . . . Authchips . | . . . . Time . | . . . . Total Robot Build Rating . | . . . . Part Schematics Acquired . | . . . . Parts Built . | . . . . Authchips . | . . . . Time . | . . . . Total Part Build Rating . | . . . . Parts Repaired . | . . . . Time . | . . . . Parts Recycled . | . . . . Recycled Matter . | . . . . Retrieved Matter . | . . . . Retrieved Components . | . . . . Parts Scanalyzed . | . . . . Part Schematics Acquired . | . . . . Parts Damaged . | . . . . Bothacking | -11 -10 -10 -10 ------------ Run | Scr Mat Min Exi Used RIF Installer . | . . . . Robots Hacked . | . . . . Non-combat . | . . . . Combat . | . . . . Robot Hacks Applied . | . . . . Relay Couplers Released . | . . . . Fabnet Peak Effective % . | . . . . Robots Rewired . | . . . . Allies Hacked . | . . . . Hacks Repelled . | . . . . Allies | -11 -10 -10 -10 -------- Run | Scr Mat Min Exi Total Allies 1 | . . 1 . Largest Group 1 | . . 1 1 Highest-Rated Group 31 | . . 31 31 Highest-Rated Ally 31 | . . 31 31 Total Orders . | . . . . Ally Attacks . | . . . . Total Damage . | . . . . Kills . | . . . . Allies Corrupted . | . . . . Allies Melted . | . . . . Intel | -11 -10 -10 -10 ------- Run | Scr Mat Min Exi Robot Analysis Total 2 | . 2 . . Derelict Logs Recovered . | . . . . Drone Launches . | . . . . Drone Recoveries . | . . . . Exploration | -11 -10 -10 -10 ------------- Run | Scr Mat Min Exi Turns Passed 2703 | 92 1893 90 628 Spaces Moved 1480 | 54 994 54 378 Core 5 | 4 . . 1 Treads 1475 | 50 994 54 377 Legs . | . . . . Wheels . | . . . . Hover . | . . . . Flight . | . . . . Fastest Speed 50 | 50 160 160 160 Average Speed 160 | 151 160 160 161 Slowest Speed 550 | 160 160 160 550 Overloaded Moves . | . . . . Propulsion Burnouts . | . . . . Robots Hopped . | . . . . Cave-ins Triggered . | . . . . Exploration Rate (%) 49 | 4 99 31 62 Regions Visited 3 Branch Regions 2 Pre-discovered Areas 1 | . . 1 . Known Exits Taken . | . . . . Unknown Exits Taken 3 | 1 1 1 . Scrap Searched . | . . . . Spaces Dug . | . . . . Terrain Destroyed . | . . . . Melee . | . . . . Projectile . | . . . . AOE . | . . . . Terrain Rammed . | . . . . Walls Destroyed . | . . . . Machines Disabled . | . . . . Actions | -11 -10 -10 -10 --------- Run | Scr Mat Min Exi Total 1735 | 61 1220 56 398 Wait 122 | . 115 . 7 Move 1477 | 53 993 53 378 Hop . | . . . . Pick Up 22 | 2 18 . 2 Fast Attach 12 | 6 5 . 1 Attach 2 | . 2 . . Detach 4 | . 2 . 2 Swap 10 | . 9 1 . Drop 23 | . 16 1 6 Fire 51 | . 50 1 . Melee . | . . . . Ram 1 | . . . 1 Kick . | . . . . Crush 1 | . . . 1 Escape Stasis . | . . . . Rewire . | . . . . Trap 10 | . 10 . . Miscellaneous . | . . . . Route ------- -11/Scrapyard -10/Materials (discovered 4 exits: [*Mat x3] / [*Min]) -10/Mines -10/Exiles (discovered 1 exit: [*Min]) History --------- Turn | Location | Event 31 | -11/Scrapyard | Discovered new exit (range 15) 93 | -11/Scrapyard | Entered Materials 115 | -10/Materials | Discovered new exit (range 16) 164 | -10/Materials | Met 8R-AWN 301 | -10/Materials | Build established: Mutant 1110 | -10/Materials | Discovered new exit (range 4) 1380 | -10/Materials | Discovered new exit (range 16) 1774 | -10/Materials | Discovered new exit (range 13) 1986 | -10/Materials | Entered Mines 1989 | -10/Mines | Escorted by a lone wolf Derelict 1989 | -10/Mines | Followed 8R-AWN into the Mines 2010 | -10/Mines | Learned location of Storage (-8) 2069 | -10/Mines | Discovered new exit (range 5) 2076 | -10/Mines | Entered Exiles 2076 | -10/Exiles | Accompanied by 1 ally 2115 | -10/Exiles | Welcomed by 8R-AWN 2142 | -10/Exiles | Met EX-HEX 2193 | -10/Exiles | Met EX-BIN 2288 | -10/Exiles | Aligned with FarCom system 2289 | -10/Exiles | Given EX-Vault access code 2328 | -10/Exiles | Opened EX-Vault 2344 | -10/Exiles | Found AWS/Thermal 2353 | -10/Exiles | Found Lightpack 2.0 2361 | -10/Exiles | Found Longsword +1 2392 | -10/Exiles | Warned to stay clear of 0b10 Research branches 2437 | -10/Exiles | Met EX-DEC 2492 | -10/Exiles | Discovered new exit (range 14) 2640 | -10/Exiles | Learned about 8R-AWN's background 2680 | -10/Exiles | Attacked by the Exiles 2692 | -10/Exiles | Core integrity fell below 50% 2702 | -10/Exiles | Core integrity fell below 20% 2704 | -10/Exiles | Destroyed by as-62703 with Assembled Maul Last Messages --------------- 02685_ Machine disabled. 02685_ Penetrated by HV Slug. 02685_ HV Slug penetrates Wall. 02690_ HV Slug penetrates Machine. 02690_ HV Slug penetrates Wall. 02693_ Penetrated by HV Slug. 02693_ HV Slug penetrates Wall. 02693_ HV Slug penetrates as-09011. 02693_ HV Slug penetrates Machine. 02693_ Lgt. Treads destroyed. 02695_ Propulsion Shielding destroyed. 02697_ Lgt. Treads destroyed. 02697_ HV Slug penetrates as-09011. 02697_ HV Slug penetrates Wall. 02697_ Penetrated by HV Slug. 02697_ HV Slug penetrates Wall. 02700_ Machine disabled. 02700_ HV Slug penetrates Wall. 02702_ Slammed into as-09011. 02702_ Ion Engine destroyed. Map ----- +----------------------------------------------------+ | ?????????????????????????????????????????????????? | | ?????????????????????????????????????????????????? | | ?????????????????????????????????????????????????? | | ?????????????????????????????????????????????????? | | ?????????????????????????????????????????????????? | | ?????????????????????????????????????????????????? | | ?????????????????????????????????????????????????? | | ?????????????????????????????????????????????????? | | ?????????????????????????????????????????????????? | | ?????????????????????????????????????????????????? | | ?????????????????????????????????????????????????? | | ?????????????????????????????????????? ?????????? | | ##???????????????????????????????????? ????????? | | "##??????????????????????????????????? ???????? | | ""##?????????????????????????????????# #???????? | | #???????????????????????????????## ##??????? | | """#???????????????????????????????# #??????? | | " "#???????????#####???????????????# #??????? | | " "##?????????##" #??????????????## ???????? | | ""###???????# #?????????????## #????????? | | """#??????##" ##????????????# #????????? | | "#????### ###????????### #?????????? | | ##???# ########## #?????????? | | ##?## a g# """## #??????????? | | ### a a aa * ##?????????? | | ## a@ * #?????????? | | ###; a ##????????? | | " #?# " "#### ###??????? | | #"""##?#######??#### * ###????? | | ######??????????????##;## ##???? | | ##???????????????????????### #???? | | ##??????????????????????????### #???? | | ""#?????????????????????????????### #???? | | "##??????????????????????????????#" ##??? | | """""##???????????????????????????????#### ###? | | ######???????????????????????????????????# ## | | ?????????????????????????????????????????## # | | ??????????????????????????????????????????### | | ????????????????????????????????????????????# | | ????????????????????????????????????????????## # | | ?????????????????????????????????????????????##### | | ?????????????????????????????????????????????????? | | ?????????????????????????????????????????????????? | | ?????????????????????????????????????????????????? | | ?????????????????????????????????????????????????? | | ?????????????????????????????????????????????????? | | ?????????????????????????????????????????????????? | | ?????????????????????????????????????????????????? | | ?????????????????????????????????????????????????? | | ?????????????????????????????????????????????????? | +----------------------------------------------------+ Best States ------------- Heat Dissipation 25 Energy Generation 10 Energy Capacity 250 Matter Stores 300 Matter Capacity 300 Sight Range 16 Terrain Scan Density 10 Propulsion Shielding 33 Utility Shielding 33 Evasion (%) 40 Recoil Reduction 2 Item Schematics ----------------- None Robot Schematics ------------------ None Fabricated ------------ Nothing Alien Tech Used ----------------- None Achievements -------------- Hehehe Challenges ------------ None Game ------ Seed CentriumPointyLance Manual? 0 Play Time 00:21:29 Cumulative 40.8 hours Start 2022.05.29 @ 23:16:07 End 2022.05.29 @ 23:37:48 Sessions 1 Manual Loads 0 Difficulty Rogue Special Mode None Game No. 70 Rogue 37 Adventurer 33 Explorer 0 Win Type - Total 2 Types 2/0/0/0/0/0/0/0/0 Lore% 20 Gallery% 28 Achievement% 30 Wizard Run 0 Options --------- ASCII 0 Keyboard 1 Movement Numpad Keybinds 0 Fullscreen 1 Font 18/SmallcapsGlow Map View 76x50 Tactical HUD 1 Map Filters NONE Filters NONE Steam 1 RUN: 6d60c7e0-3ec6-41dd-a592-d5e550a33518